lending/lending_fUSD_20251124
["ID","MTS","AMOUNT","RATE_DAILY","PERIOD"]
[394825630,1763995837395,-500.0,0.00016396,2]
[394825632,1763995837404,-500.0,0.00016396,2]
[394825634,1763995837413,-500.0,0.00016396,2]
[394825635,1763995837422,-521.31712034,0.00016396,2]
[394825637,1763995837431,-500.0,0.00016396,2]
[394825638,1763995837440,-500.0,0.00016396,2]
[394825639,1763995837452,-263.75639361,0.00016396,2]
[394825640,1763995837460,-500.0,0.00016396,2]
[394825641,1763995837468,-500.0,0.00016396,2]
[394825642,1763995837478,-500.0,0.00016396,2]
[394825643,1763995837487,-500.0,0.00016396,2]
[394825644,1763995837497,-500.0,0.00016396,2]
[394825645,1763995837506,-500.0,0.00016396,2]
[394825646,1763995837516,-500.0,0.00016396,2]
[394825647,1763995837526,-178.63833561,0.00016396,2]
[394825648,1763995837535,-500.0,0.00016396,2]
[394825649,1763995837544,-500.0,0.00016396,2]
[394825650,1763995837553,-547.40314688,0.00016396,2]
[394825651,1763995837563,-1583.1184144,0.00016396,2]
[394825652,1763995837572,-500.0,0.00016396,2]
[394825653,1763995837581,-500.0,0.00016396,2]
[394825654,1763995837591,-500.0,0.00016396,2]
[394825655,1763995837601,-445.44729605,0.00016396,2]
[394825656,1763995837610,-1000.0,0.00016396,2]
[394825657,1763995837619,-555.06029643,0.00016396,2]
[394825658,1763995837629,-299131.48324058,0.00016396,2]
[394825659,1763995837638,-150.0,0.0001642,2]
[394825661,1763995837648,-3755.99,0.00016438,2]
[394825662,1763995837657,-4175.8057,0.00016442,2]
[394825663,1763995837666,-3191.66513097,0.00016445,2]
[394825664,1763995837676,-8636.04326139,0.00016449,2]
[394825665,1763995837686,-1575.36961874,0.00016449,2]
[394825666,1763995837696,-230.0,0.00016494,2]
[394825667,1763995837709,-979.78,0.00016497,2]
[394825668,1763995837719,-156.03607507,0.000165,2]
[394825669,1763995837729,-6523.0,0.00016507,2]
[394825670,1763995837738,-1058.96261977,0.00016508,2]
[394825671,1763995837747,-8636.04326139,0.00016513,2]
[394825672,1763995837756,-1575.36961874,0.00016513,2]
[394825673,1763995837765,-777.0,0.00016535,2]
[394825674,1763995837775,-500.0,0.00016541,2]
[394825675,1763995837784,-500.0,0.00016541,2]
[394825676,1763995837793,-485.41944203,0.00016541,2]
[394825677,1763995837803,-500.0,0.00016541,2]
[394825678,1763995837812,-500.0,0.00016541,2]
[394825679,1763995837822,-336.03492657,0.00016541,2]
[394825680,1763995837831,-500.0,0.00016541,2]
[394825681,1763995837841,-500.0,0.00016541,2]
[394825682,1763995837850,-500.0,0.00016541,2]
[394825683,1763995837860,-500.0,0.00016541,2]
[394825684,1763995837870,-500.0,0.00016541,2]
[394825685,1763995837879,-500.0,0.00016541,2]
[394825686,1763995837888,-500.0,0.00016541,2]
[394825687,1763995837898,-500.0,0.00016541,2]
[394825688,1763995837907,-500.0,0.00016541,2]
[394825689,1763995838099,-500.0,0.00016541,2]
[394825690,1763995838110,-446.74332451,0.00016541,2]
[394825691,1763995838120,-500.0,0.00016541,2]
[394825692,1763995838131,-500.0,0.00016541,2]
[394825693,1763995838141,-500.0,0.00016541,2]
[394825694,1763995838151,-500.0,0.00016541,2]
[394825695,1763995838163,-230.0,0.00016546,2]
[394825696,1763995838173,-2531.00567773,0.00016548,2]
[394825697,1763995838183,-150.0,0.00016562,2]
[394825698,1763995838193,-500.0,0.00016572,2]
[394825699,1763995838205,-363.29164224,0.00016572,2]
[394825700,1763995838215,-500.0,0.00016572,2]
[394825701,1763995838226,-1118.30927387,0.00016577,2]
[394825702,1763995838236,-8636.04326139,0.00016578,2]
[394825703,1763995838246,-1575.36961874,0.00016578,2]
[394825704,1763995838257,-156.0,0.000166,2]
[394825705,1763995838268,-156.0,0.000166,2]
[394825706,1763995838278,-5012.0,0.00016602,2]
[394825707,1763995838288,-9290.04,0.00016628,2]
[394825708,1763995838298,-1000.0,0.00016632,2]
[394825709,1763995838308,-1000.0,0.00016632,2]
[394825710,1763995838318,-1000.0,0.00016632,2]
[394825711,1763995838328,-1000.0,0.00016632,2]
[394825712,1763995838339,-1000.0,0.00016632,2]
[394825713,1763995838349,-1000.0,0.00016632,2]
[394825714,1763995838360,-1000.0,0.00016632,2]
[394825715,1763995838371,-500.0,0.00016637,2]
[394825716,1763995838381,-500.0,0.00016637,2]
[394825717,1763995838391,-500.0,0.00016637,2]
[394825718,1763995838401,-500.0,0.00016637,2]
[394825719,1763995838411,-226.66039684,0.00016637,2]
[394825720,1763995838421,-342.27425818,0.00016637,2]
[394825721,1763995838431,-500.0,0.00016637,2]
[394825722,1763995838440,-500.0,0.00016637,2]
[394825723,1763995838453,-406.31344899,0.00016637,2]
[394825724,1763995838464,-500.0,0.00016637,2]
[394825725,1763995838474,-500.0,0.00016637,2]
[394825726,1763995838485,-500.0,0.00016637,2]
[394825727,1763995838495,-491.43382697,0.00016637,2]
[394825728,1763995838505,-262.1295336,0.00016637,2]
[394825729,1763995838515,-517.16072235,0.00016637,2]
[394825730,1763995838525,-555.12074998,0.00016637,2]
[394825731,1763995838536,-500.0,0.00016637,2]
[394825732,1763995838545,-500.0,0.00016637,2]
[394825733,1763995838555,-500.0,0.00016637,2]
[394825734,1763995838564,-500.0,0.00016637,2]
[394825735,1763995838574,-500.0,0.00016637,2]
[394825736,1763995838584,-500.0,0.00016637,2]
[394825737,1763995838594,-500.0,0.00016637,2]
[394825738,1763995838604,-500.0,0.00016637,2]
[394825739,1763995838614,-500.0,0.00016637,2]
[394825740,1763995838624,-500.0,0.00016637,2]
[394825741,1763995838634,-500.0,0.00016637,2]
[394825742,1763995838645,-500.0,0.00016637,2]
[394825743,1763995838656,-500.0,0.00016637,2]
[394825744,1763995838667,-500.0,0.00016637,2]
[394825745,1763995838678,-500.0,0.00016637,2]
[394825746,1763995838688,-500.0,0.00016637,2]
[394825747,1763995838698,-500.0,0.00016637,2]
[394825748,1763995838711,-500.0,0.00016637,2]
[394825749,1763995838721,-500.0,0.00016637,2]
[394825750,1763995838731,-500.0,0.00016637,2]
[394825751,1763995838741,-500.0,0.00016637,2]
[394825752,1763995838752,-500.0,0.00016637,2]
[394825753,1763995838762,-500.0,0.00016637,2]
[394825754,1763995838773,-500.0,0.00016637,2]
[394825755,1763995838784,-500.0,0.00016637,2]
[394825756,1763995838794,-500.0,0.00016637,2]
[394825757,1763995838805,-500.0,0.00016637,2]
[394825758,1763995838816,-500.0,0.00016637,2]
[394825759,1763995838827,-500.0,0.00016637,2]
[394825760,1763995838838,-426.4867161,0.00016637,2]
[394825761,1763995838848,-500.0,0.00016637,2]
[394825762,1763995838858,-500.0,0.00016637,2]
[394825763,1763995838869,-500.0,0.00016637,2]
[394825764,1763995838879,-500.0,0.00016637,2]
[394825765,1763995838889,-500.0,0.00016637,2]
[394825766,1763995838899,-500.0,0.00016637,2]
[394825767,1763995838910,-500.0,0.00016637,2]
[394825768,1763995838920,-500.0,0.00016637,2]
[394825769,1763995838930,-500.0,0.00016637,2]
[394825770,1763995838942,-500.0,0.00016637,2]
[394825771,1763995838958,-500.0,0.00016637,2]
[394825772,1763995838969,-500.0,0.00016637,2]
[394825773,1763995838982,-500.0,0.00016637,2]
[394825774,1763995838993,-500.0,0.00016637,2]
[394825775,1763995839003,-500.0,0.00016637,2]
[394825776,1763995839013,-501.86314705,0.00016637,2]
[394825777,1763995839024,-500.0,0.00016637,2]
[394825778,1763995839034,-500.0,0.00016637,2]
[394825779,1763995839045,-500.0,0.00016637,2]
[394825780,1763995839055,-500.0,0.00016637,2]
[394825781,1763995839066,-500.0,0.00016637,2]
[394825782,1763995839076,-500.0,0.00016637,2]
[394825783,1763995839087,-500.0,0.00016637,2]
[394825784,1763995839098,-500.0,0.00016637,2]
[394825785,1763995839108,-500.0,0.00016637,2]
[394825786,1763995839119,-500.0,0.00016637,2]
[394825787,1763995839129,-500.0,0.00016637,2]
[394825790,1763995839139,-500.0,0.00016637,2]
[394825791,1763995839149,-500.0,0.00016637,2]
[394825792,1763995839159,-500.0,0.00016637,2]
[394825793,1763995839170,-500.0,0.00016637,2]
[394825794,1763995839180,-500.0,0.00016637,2]
[394825795,1763995839190,-500.0,0.00016637,2]
[394825796,1763995839204,-500.0,0.00016637,2]
[394825798,1763995839213,-500.0,0.00016637,2]
[394825799,1763995839223,-500.0,0.00016637,2]
[394825800,1763995839233,-500.0,0.00016637,2]
[394825801,1763995839244,-500.0,0.00016637,2]
[394825802,1763995839253,-500.0,0.00016637,2]
[394825803,1763995839263,-500.0,0.00016637,2]
[394825804,1763995839273,-500.0,0.00016637,2]
[394825805,1763995839284,-500.0,0.00016637,2]
[394825806,1763995839293,-500.0,0.00016637,2]
[394825809,1763995839304,-500.0,0.00016637,2]
[394825810,1763995839314,-500.0,0.00016637,2]
[394825813,1763995839324,-500.0,0.00016637,2]
[394825815,1763995839335,-500.0,0.00016637,2]
[394825816,1763995839345,-380.0,0.00016637,2]
[394825817,1763995839355,-500.0,0.00016637,2]
[394825818,1763995839364,-500.0,0.00016637,2]
[394825819,1763995839374,-500.0,0.00016637,2]
[394825820,1763995839383,-500.0,0.00016637,2]
[394825821,1763995839393,-500.0,0.00016637,2]
[394825822,1763995839404,-442.06960664,0.00016637,2]
[394825823,1763995839414,-265745.1975886,0.00016638,2]
[394825824,1763995839424,-8636.04326139,0.00016642,2]
[394825825,1763995839434,-1575.36961874,0.00016642,2]
[394825826,1763995839444,-5012.0,0.00016655,2]
[394825827,1763995839460,-156.03607507,0.00016656,2]
[394825828,1763995839469,-8636.04326139,0.00016707,2]
[394825829,1763995839479,-1438.09495884,0.00016718,2]
[394825830,1763995839489,-168.0,0.00016742,2]
[394825831,1763995839498,-168.0,0.00016748,2]
[394825832,1763995839508,-1000.0,0.0001677,2]
[394825833,1763995839518,-1000.0,0.0001677,2]
[394825834,1763995839528,-305.471,0.0001677,2]
[394825835,1763995839538,-979.78,0.00016771,2]
[394825836,1763995839548,-8636.04326139,0.00016771,2]
[394825837,1763995839558,-642.94,0.00016771,2]
[394825838,1763995839568,-597.09424157,0.00016771,2]
[394825839,1763995839578,-166.68,0.00016775,2]
[394825840,1763995839587,-156.03607507,0.00016811,2]
[394825841,1763995839597,-8636.04326139,0.00016836,2]
[394825842,1763995839607,-168.0,0.00016847,2]
[394825843,1763995839617,-153.70266157,0.00016853,2]
[394825844,1763995839627,-150.0,0.00016853,2]
[394825845,1763995839637,-150.0,0.00016853,2]
[394825846,1763995839647,-150.0,0.00016853,2]
[394825847,1763995839657,-150.0,0.00016853,2]
[394825848,1763995839667,-500.0,0.00016853,2]
[394825849,1763995839677,-500.0,0.00016853,2]
[394825850,1763995839686,-150.0,0.00016853,2]
[394825851,1763995839696,-203.82475822,0.00016853,2]
[394825852,1763995839711,-500.0,0.00016853,2]
[394825853,1763995839723,-500.0,0.00016853,2]
[394825854,1763995839732,-150.56621767,0.00016853,2]
[394825855,1763995839742,-151.67192107,0.00016853,2]
[394825856,1763995839751,-150.0,0.00016853,2]
[394825857,1763995839760,-150.0,0.00016853,2]
[394825858,1763995839769,-202.40106133,0.00016853,2]
[394825859,1763995839779,-150.0,0.00016853,2]
[394825860,1763995839788,-209.72429061,0.00016853,2]
[394825861,1763995839798,-150.0,0.00016853,2]
[394825862,1763995839808,-151.73344126,0.00016853,2]
[394825863,1763995839818,-500.0,0.00016853,2]
[394825864,1763995839827,-150.0,0.00016853,2]
[394825865,1763995839836,-150.0,0.00016853,2]
[394825866,1763995839845,-500.0,0.00016853,2]
[394825867,1763995839855,-500.0,0.00016853,2]
[394825868,1763995839864,-500.0,0.00016853,2]
[394825869,1763995839874,-1842.0,0.00016853,2]
[394825870,1763995839883,-168.0,0.00016857,2]
[394825871,1763995839893,-200.0,0.00016864,2]
[394825872,1763995839902,-777.0,0.00016872,2]
[394825873,1763995839912,-425.5347,0.000169,2]
[394825874,1763995839922,-8636.04326139,0.000169,2]
[394825875,1763995839931,-391.88041765,0.000169,2]
[394825876,1763995839942,-1000.0,0.00016921,2]
[394825877,1763995839955,-761.43962235,0.00016921,2]
[394825878,1763995839964,-2211.83,0.00016922,2]
[394825879,1763995839974,-9999.99,0.00016922,2]
[394825880,1763995839983,-2258.16,0.00016922,2]
[394825881,1763995839996,-300.0,0.00016933,2]
[394825882,1763995840005,-55642.0,0.00016959,2]
[394825883,1763995840014,-156.03607507,0.00016967,2]
[394825884,1763995840024,-535.09905038,0.00016973,2]
[394825885,1763995840035,-500.0,0.00016973,2]
[394825886,1763995840045,-215.35407928,0.00016973,2]
[394825887,1763995840054,-500.0,0.00016973,2]
[394825888,1763995840064,-500.0,0.00016973,2]
[394825889,1763995840074,-216.84570458,0.00016973,2]
[394825890,1763995840083,-500.0,0.00016973,2]
[394825891,1763995840093,-501.95483975,0.00016973,2]
[394825892,1763995840102,-502.45353273,0.00016973,2]
[394825893,1763995840112,-500.0,0.00016973,2]
[394825894,1763995840121,-500.0,0.00016973,2]
[394825895,1763995840130,-186.88026511,0.00016973,2]
[394825896,1763995840140,-500.0,0.00016973,2]
[394825897,1763995840150,-642.97345703,0.00016973,2]
[394825898,1763995840159,-500.0,0.00016973,2]
[394825899,1763995840169,-500.0,0.00016973,2]
[394825900,1763995840179,-500.0,0.00016973,2]
[394825901,1763995840188,-500.0,0.00016973,2]
[394825902,1763995840198,-151.0,0.00016973,2]
[394825903,1763995840212,-150.0,0.00016986,2]
[394825904,1763995840221,-275.420462,0.00016986,2]
[394825905,1763995840230,-166.00581416,0.00016986,2]
[394825906,1763995840240,-169.47971709,0.00016986,2]
[394825907,1763995840249,-198.05767948,0.0001699,2]
[394825908,1763995840259,-252.53085637,0.0001699,2]
[394825909,1763995840269,-500.0,0.0001699,2]
[394825910,1763995840278,-500.0,0.0001699,2]
[394825911,1763995840288,-500.0,0.0001699,2]
[394825912,1763995840297,-500.0,0.0001699,2]
[394825913,1763995840307,-152.06180931,0.0001699,2]
[394825914,1763995840316,-261.38569925,0.0001699,2]
[394825915,1763995840326,-150.0,0.0001699,2]
[394825916,1763995840335,-150.0,0.0001699,2]
[394825917,1763995840345,-500.0,0.0001699,2]
[394825918,1763995840356,-150.0,0.0001699,2]
[394825919,1763995840366,-202.51727395,0.0001699,2]
[394825920,1763995840376,-500.0,0.0001699,2]
[394825921,1763995840387,-500.0,0.0001699,2]
[394825922,1763995840397,-500.0,0.0001699,2]
[394825923,1763995840406,-1842.0,0.0001699,2]
[394825924,1763995840416,-276.298502,0.0001699,2]
[394825925,1763995840426,-276.298502,0.0001699,2]
[394825926,1763995840436,-276.298502,0.0001699,2]
[394825927,1763995840445,-276.298502,0.0001699,2]
[394825928,1763995840460,-432.35466996,0.0001699,2]
[394825929,1763995840469,-432.35466996,0.0001699,2]
[394825930,1763995840478,-432.35466996,0.0001699,2]
[394825931,1763995840487,-500.0,0.00016999,2]
[394825932,1763995840497,-500.0,0.00016999,2]
[394825933,1763995840506,-500.0,0.00016999,2]
[394825934,1763995840516,-500.0,0.00016999,2]
[394825935,1763995840525,-500.0,0.00016999,2]
[394825936,1763995840534,-500.0,0.00016999,2]
[394825937,1763995840543,-439.74156925,0.00016999,2]
[394825938,1763995840553,-500.0,0.00016999,2]
[394825939,1763995840563,-500.0,0.00016999,2]
[394825940,1763995840572,-500.0,0.00016999,2]
[394825941,1763995840581,-500.0,0.00016999,2]
[394825942,1763995840591,-305.6583792,0.00016999,2]
[394825943,1763995840600,-500.0,0.00016999,2]
[394825944,1763995840610,-507.02640865,0.00016999,2]
[394825945,1763995840619,-500.0,0.00016999,2]
[394825946,1763995840628,-187.281971,0.00016999,2]
[394825947,1763995840637,-500.0,0.00016999,2]
[394825948,1763995840646,-464.4792225,0.00016999,2]
[394825949,1763995840655,-500.0,0.00016999,2]
[394825950,1763995840665,-500.0,0.00016999,2]
[394825951,1763995840674,-500.0,0.00016999,2]
[394825952,1763995840684,-500.0,0.00016999,2]
[394825953,1763995840693,-362.7848419,0.00016999,2]
[394825954,1763995840706,-3182917.05746236,0.00017,2]
[394825955,1763995840715,-3405458.04273024,0.00017,2]
[394825956,1763995840740,-800.56482882,0.00017,2]
[394825957,1763995840752,-857.70542674,0.00017,2]
[394825958,1763995840765,-308.95478149,0.00017,2]
[394825959,1763995840782,-150.0,0.00016853,2]
[394825960,1763995840791,-834.039998,0.00017,2]
[394825961,1763995841247,-150.0,0.00016853,2]
[394825962,1763995841257,-150.0,0.0001699,2]
[394825963,1763995841266,-8308.6,0.00017,2]
[394825964,1763995841278,-36377.341,0.00017,2]
[394825965,1763995841291,-2568.0,0.00017,2]
[394825966,1763995841315,-1419815.02740729,0.00017,2]
[394825967,1763995841325,-1000.0,0.00017,2]
[394825968,1763995841335,-250.0,0.00017,2]
[394825969,1763995841345,-276.298502,0.00017,2]
[394825970,1763995841355,-276.298502,0.00017,2]
[394825971,1763995841365,-276.298502,0.00017,2]
[394825972,1763995841375,-276.298502,0.00017,2]
[394825973,1763995841385,-276.298502,0.00017,2]
[394825974,1763995841395,-276.298502,0.00017,2]
[394825975,1763995841404,-276.298502,0.00017,2]
[394825976,1763995841413,-276.298502,0.00017,2]
[394825977,1763995841423,-979.78,0.00017045,2]
[394825978,1763995841431,-391.88041759,0.00017067,2]
[394825979,1763995841440,-156.03607507,0.00017122,2]
[394825980,1763995841450,-168.0,0.00017124,2]
[394825981,1763995841464,-353.97817701,0.00017127,2]
[394825982,1763995841473,-500.0,0.00017127,2]
[394825983,1763995841482,-500.0,0.00017127,2]
[394825984,1763995841492,-150.0,0.00017127,2]
[394825985,1763995841502,-200.72643007,0.00017127,2]
[394825986,1763995841512,-500.0,0.00017127,2]
[394825987,1763995841522,-200.0,0.00017127,2]
[394825988,1763995841533,-619.1481329,0.00017127,2]
[394825989,1763995841543,-450.0,0.00017127,2]
[394825990,1763995841554,-500.0,0.00017127,2]
[394825991,1763995841563,-1842.0,0.00017127,2]
[394825992,1763995841573,-150.0,0.00017127,2]
[394825993,1763995841583,-168.0,0.00017177,2]
[394825994,1763995841593,-391.88041759,0.00017233,2]
[394825995,1763995841603,-500.0,0.00017264,2]
[394825996,1763995841614,-500.0,0.00017264,2]
[394825997,1763995841624,-150.0,0.00017264,2]
[394825998,1763995841635,-500.0,0.00017264,2]
[394825999,1763995841645,-500.0,0.00017264,2]
[394826000,1763995841655,-1842.0,0.00017264,2]
[394826001,1763995841666,-150.0,0.00017264,2]
[394826002,1763995841676,-1491.30447232,0.00017266,2]
[394826003,1763995841686,-156.03607507,0.00017278,2]
[394826004,1763995841696,-979.78,0.00017319,2]
[394826005,1763995841711,-642.94,0.00017319,2]
[394826006,1763995841721,-935.0,0.00017342,2]
[394826007,1763995841731,-2500.0,0.00017365,2]
[394826008,1763995841741,-2500.0,0.00017365,2]
[394826009,1763995841750,-2235.80760479,0.00017365,2]
[394826010,1763995841759,-195.0,0.00017365,2]
[394826011,1763995841769,-391.88041759,0.000174,2]
[394826012,1763995841778,-500.0,0.00017401,2]
[394826013,1763995841787,-211.93174976,0.00017401,2]
[394826014,1763995841796,-150.0,0.00017401,2]
[394826015,1763995841806,-500.0,0.00017401,2]
[394826016,1763995841816,-500.0,0.00017401,2]
[394826017,1763995841825,-1842.0,0.00017401,2]
[394826018,1763995841834,-204.08896971,0.00017401,2]
[394826019,1763995841843,-156.03607507,0.00017433,2]
[394826020,1763995841853,-166.68,0.0001744,2]
[394826021,1763995841862,-1500.0,0.00017468,2]
[394826022,1763995841871,-500.0,0.00017521,2]
[394826023,1763995841881,-1148.69732152,0.00017521,2]
[394826024,1763995841891,-500.0,0.00017521,2]
[394826025,1763995841901,-1000.0,0.00017521,2]
[394826026,1763995841910,-504.9809457,0.00017521,2]
[394826027,1763995841920,-764.22125371,0.00017521,2]
[394826028,1763995841930,-501.01239348,0.00017521,2]
[394826029,1763995841940,-1000.0,0.00017521,2]
[394826030,1763995841955,-1000.0,0.00017521,2]
[394826031,1763995841965,-1000.0,0.00017521,2]
[394826032,1763995841976,-1000.0,0.00017521,2]
[394826033,1763995841986,-500.0,0.00017538,2]
[394826034,1763995842002,-204.55374578,0.00017538,2]
[394826035,1763995842012,-500.0,0.00017538,2]
[394826036,1763995842021,-500.0,0.00017538,2]
[394826037,1763995842031,-1842.0,0.00017538,2]
[394826038,1763995842041,-391.88041759,0.00017567,2]
[394826039,1763995842051,-156.03607507,0.00017589,2]
[394826040,1763995842062,-979.78,0.00017593,2]
[394826041,1763995842072,-1000.0,0.00017622,2]
[394826042,1763995842082,-420.0,0.00017635,2]
[394826043,1763995842091,-195.0,0.0001764,2]
[394826044,1763995842100,-250.0,0.0001764,2]
[394826045,1763995842109,-304.68820063,0.0001764,2]
[394826046,1763995842119,-500.0,0.00017675,2]
[394826047,1763995842128,-449.39719556,0.00017675,2]
[394826048,1763995842138,-500.0,0.00017675,2]
[394826049,1763995842148,-1842.0,0.00017675,2]
[394826050,1763995842159,-1000.0,0.000177,3]
[394826051,1763995842168,-403.0,0.000177,5]
[394826052,1763995842178,-1680.0,0.00017724,2]
[394826053,1763995842188,-391.88041759,0.00017733,2]
[394826054,1763995842197,-156.03607507,0.00017744,2]
[394826055,1763995842212,-193.0,0.00017745,2]
[394826056,1763995842221,-195.0,0.00017746,2]
[394826057,1763995842230,-250.0,0.00017746,2]
[394826058,1763995842240,-195.0,0.00017746,2]
[394826059,1763995842250,-250.0,0.00017746,2]
[394826060,1763995842259,-150.10776003,0.00017746,3]
[394826061,1763995842269,-2500.0,0.00017746,2]
[394826062,1763995842279,-2500.0,0.00017746,2]
[394826063,1763995842288,-163.76,0.00017771,2]
[394826064,1763995842298,-500.0,0.00017812,2]
[394826065,1763995842307,-150.0,0.00017812,2]
[394826066,1763995842316,-1842.0,0.00017812,2]
[394826067,1763995842326,-1600.0,0.00017813,2]
[394826068,1763995842336,-872.7160643,0.00017814,2]
[394826069,1763995842345,-979.78,0.00017867,2]
[394826070,1763995842355,-199244.99896915,0.000179,3]
[394826071,1763995842364,-156.03607507,0.000179,2]
[394826072,1763995842373,-391.88041759,0.000179,2]
[394826073,1763995842383,-276.298502,0.000179,2]
[394826074,1763995842392,-276.298502,0.000179,2]
[394826075,1763995842401,-276.298502,0.000179,2]
[394826076,1763995842410,-276.298502,0.000179,2]
[394826077,1763995842421,-500.0,0.00017949,2]
[394826078,1763995842430,-1842.0,0.00017949,2]
[394826079,1763995842439,-500.0,0.00017973,2]
[394826080,1763995842448,-500.0,0.00017973,2]
[394826081,1763995842460,-500.0,0.00017973,2]
[394826082,1763995842470,-500.0,0.00017973,2]
[394826083,1763995842479,-500.0,0.00017973,2]
[394826084,1763995842489,-501.90024739,0.00017973,2]
[394826085,1763995842499,-500.0,0.00017973,2]
[394826086,1763995842508,-500.0,0.00017973,2]
[394826087,1763995842517,-500.0,0.00017973,2]
[394826088,1763995842526,-500.0,0.00017973,2]
[394826089,1763995842536,-500.0,0.00017973,2]
[394826090,1763995842545,-568.00209004,0.00017973,2]
[394826091,1763995842554,-413.2167407,0.00017973,2]
[394826092,1763995842564,-500.0,0.00017973,2]
[394826093,1763995842574,-500.0,0.00017973,2]
[394826094,1763995842584,-500.0,0.00017973,2]
[394826095,1763995842594,-502.22800142,0.00017973,2]
[394826096,1763995842603,-500.0,0.00017973,2]
[394826097,1763995842612,-493.19356656,0.00017973,2]
[394826098,1763995842622,-501.32121336,0.00017973,2]
[394826099,1763995842631,-330.84454354,0.00017973,2]
[394826100,1763995842640,-500.0,0.00017973,2]
[394826101,1763995842650,-343.30464528,0.00017973,2]
[394826102,1763995842660,-164.89619302,0.00017973,2]
[394826103,1763995842670,-500.0,0.00017973,2]
[394826104,1763995842679,-500.0,0.00017973,2]
[394826105,1763995842688,-500.4051858,0.00017973,2]
[394826106,1763995842698,-500.0,0.00017973,2]
[394826107,1763995842712,-500.0,0.00017973,2]
[394826108,1763995842722,-500.0,0.00017973,2]
[394826109,1763995842731,-327.89727296,0.00017973,2]
[394826110,1763995842741,-501.79706774,0.00017973,2]
[394826111,1763995842751,-4007232.7883073,0.00018,2]
[394826112,1763995842771,-1575.36961874,0.00016707,2]
[394826113,1763995842781,-5696.83035002,0.00018,2]
[394826114,1763995842807,-1339.22519806,0.00018,2]
[394826115,1763995842820,-73062.9536497,0.00018,2]
[394826119,1763995844357,-1234.68114332,0.0001632,2]
[394826120,1763995844367,-500.0,0.00016853,2]
[394826121,1763995844377,-500.0,0.0001699,2]
[394826122,1763995844387,-777.50636703,0.00018,2]
[394826144,1763995845718,-1575.36961874,0.00016771,2]
[394826145,1763995845729,-500.0,0.00017127,2]
[394826146,1763995845896,-476.05650305,0.00017264,2]
[394826147,1763995845906,-1550.0,0.000177,2]
[394826148,1763995845917,-684854.57387806,0.00018,2]
[394826149,1763995845942,-150.0,0.00017949,2]
[394826150,1763995845952,-21465.50017259,0.00018,2]
[394826151,1763995845971,-2835.8024,0.00018,2]
[394826152,1763995845984,-1338.17446002,0.00018,2]
[394826153,1763995846292,-1410.86067932,0.00018,2]
[394826154,1763995846305,-1262.17621679,0.00018,2]
[394826155,1763995846319,-1543.09853918,0.00018,2]
[394826156,1763995846332,-1630.68797686,0.00018,2]
[394826157,1763995846344,-896.70793999,0.00018,2]
[394826158,1763995846356,-846.95628169,0.00018,2]
[394826159,1763995846367,-636.87301503,0.00018,2]
[394826160,1763995846379,-429.98918981,0.00018,2]
[394826161,1763995846399,-592.28660235,0.00018,2]
[394826171,1763995928834,1600.0,0.00015276,2]
[394826173,1763996028005,447.59,0.00015276,2]
[394826183,1763996220537,-500.0,0.00016033,2]
[394826184,1763996220560,-195.0,0.00016103,2]